Cogmind - Beta 13 @@@ ROGUE MODE // 2024.05.13 @ 21:28:32 Player: Lenbot7 Result: Destroyed by G-47 Trooper with Particle Gun Performance ------------- Evolutions (2) 1000 Regions Visited (3) 600 Robots Destroyed (31) 155 Value Destroyed (1067) 1067 Prototype IDs (3) 60 Alien Tech Used (0) 0 Bonus (0) 0 TOTAL SCORE: 2882 Bonus ------- None Cogmind --------- Core Integrity 0/550 Matter 285/300 Energy 100/100 System Corruption 0% Temperature Cool (9) Movement Core (50) Location -8/Materials Parts ------- > --- POWER (2) -------- (None) > --- PROPULSION (3) --- (None) > --- UTILITY (3) ------ Improved Signal Interpreter > --- WEAPON (3) ------- Hammer > --- INVENTORY (5) ---- Medium Storage Unit Tractor Beam Peak State ------------ > --- POWER ------------ Ion Engine Light Nuclear Core > --- PROPULSION ------- Light Treads Light Treads Light Treads > --- UTILITY ---------- Medium Storage Unit Improved Signal Interpreter Core Shielding > --- WEAPON ----------- Backup Laser I Backup Laser I Particle Cannon > --- INVENTORY -------- Light Treads Tractor Beam EM Pulse Gun Small Laser Plasma Cutter Hammer [Rating: 16] Favorites ----------- Power Light Nuclear Core Engine Ion Engine Power Core Light Nuclear Core Propulsion Light Treads Treads Light Treads Hover Unit Improved Hover Unit Utility Core Shielding Device Tractor Beam Storage Small Storage Unit Processor Improved Signal Interpreter Protection Core Shielding Weapon Backup Laser I Energy Gun Backup Laser I Energy Cannon Particle Cannon Ballistic Gun Light Assault Rifle Special Weapon Plasma Cutter Impact Weapon Hammer Build | -11 -10 -9 -8 ------- Run | Yrd Mat Mat Mat Slots Evolved 4 | . . 2 2 Power 1 | . . . 1 Propulsion 1 | . . . 1 Utility 1 | . . 1 . Weapon 1 | . . 1 . Parts Attached 44 | 5 12 17 10 Power 5 | 1 1 2 1 Engine 3 | 1 1 . 1 Core 2 | . . 2 . Reactor . | . . . . Propulsion 8 | 2 . 2 4 Treads 7 | 2 . 2 3 Leg . | . . . . Wheel . | . . . . Hover 1 | . . . 1 Flight . | . . . . Utility 9 | . 2 6 1 Device 2 | . . 2 . Storage 3 | . 1 1 1 Processor 2 | . 1 1 . Hackware . | . . . . Protection 2 | . . 2 . Artifact . | . . . . Weapon 22 | 2 9 7 4 Energy Gun 8 | 2 1 3 2 Energy Cannon 5 | . 2 3 . Ballistic Gun 2 | . 1 1 . Ballistic Cannon . | . . . . Launcher . | . . . . Special Weapon 4 | . 3 . 1 Impact Weapon 3 | . 2 . 1 Slashing Weapon . | . . . . Piercing Weapon . | . . . . Special Melee Weapon . | . . . . Unidentified Prototypes 1 | . . 1 . Corrupted Parts 1 | . . 1 . System Corruption 1 | . . 1 . Parts Lost 20 | . 1 5 14 Power 4 | . 1 1 2 Propulsion 6 | . . 1 5 Utility 1 | . . . 1 Weapon 9 | . . 3 6 Highest Loss Streak 13 | . 1 2 13 To Critical Strikes . | . . . . Average Slot Usage (%) 91 | . 94 96 77 Engine 5 | . 14 2 5 Core 6 | . . 8 6 Treads 21 | . 28 20 19 Device 4 | . . 7 . Storage 10 | . 11 11 8 Processor 6 | . 11 3 9 Protection 7 | . . 11 6 Energy Gun 8 | . 8 6 14 Energy Cannon 13 | . 9 18 6 Ballistic Gun 4 | . 1 8 . Special Weapon 1 | . 7 . . Naked Turns . | . . . . Heaviest Build 57 | 6 15 26 57 Greatest Support 60 | 40 40 40 60 Greatest Overweight (x) 13 | . . 1 13 Average Overweight (x) . | . . . . Largest Inventory Capacity 20 | 5 8 10 20 Average Capacity 10 | 5 7 8 16 Most Carried 9 | 3 7 9 8 Average Carried 5 | 2 4 6 5 Final Capacity 10 | 5 8 10 5 Final Carried 8 | 3 5 8 2 Class Distribution -------------------- 36% | Scavenger-Tank 31% | Mutant 29% | Tank 3% | Gunner Dominant Class ---------------- Mutant | -10/Materials Tank | -9/Materials Scavenger-Tank | -8/Materials Resources | -11 -10 -9 -8 ----------- Run | Yrd Mat Mat Mat Matter Collected 592 | 121 44 372 55 Remotely 342 | . . 342 . Salvage Created 1215 | . 73 772 370 Parts 63 | . 3 41 19 Haulers Intercepted . | . . . . Recyclers Shooed 2 | . . 1 1 Parts Field Recycled . | . . . . Retrieved Matter . | . . . . Parts Self-Destructed . | . . . . Prevented . | . . . . Kills | -11 -10 -9 -8 ------- Run | Yrd Mat Mat Mat Combat Hostiles Destroyed 28 | . 3 16 9 Melee 1 | . . . 1 Guns 5 | . 1 1 3 Cannons 20 | . 1 15 4 Classes Destroyed 5 | . 2 3 . Recycler 1 | . . 1 . Watcher 2 | . . 1 1 Swarmer 5 | . 2 . 3 Grunt 19 | . 1 13 5 Sentry 4 | . . 3 1 Best Kill Streak 4 | . 3 3 4 Combat Bots Only 3 | . 3 3 3 Max Kills in Single Turn 1 | . 1 1 1 Gunslinging . | . . . . Exploded . | . . . . Melee 1 | . . . 1 Uniques/NPCs Destroyed . | . . . . Combat | -11 -10 -9 -8 -------- Run | Yrd Mat Mat Mat Hostile Shots Fired 298 | . 63 71 164 Missed 84 | . 13 19 52 Damage Taken 2619 | . 497 657 1465 Core 776 | . 104 120 552 Absorbed by Shields . | . . . . Redirected to Shielding 52 | . . 27 25 Regen/Repaired (Parts) 98 | . . . 98 Core Remaining (%) 76 | 100 58 70 . Volleys Fired 100 | . 11 48 41 Largest 3 | . 2 3 3 Hottest 156 | . 96 156 128 Shots Fired 231 | . 20 130 81 Gun 125 | . 11 56 58 Cannon 105 | . 8 74 23 Launcher . | . . . . Special 1 | . 1 . . Kinetic 31 | . 2 29 . Thermal 163 | . 3 79 81 Explosive . | . . . . Electromagnetic 37 | . 15 22 . Robot Hit Streak 11 | . 3 11 10 Robot Miss Streak 6 | . 2 6 5 Penetration Max . | . . . . Secondary Targets . | . . . . Shots Hit Robots 140 | . 11 67 62 Core Hits 52 | . 5 25 22 Critical Kills . | . . . . Critical Parts Destroyed 1 | . 1 . . Critical Strikes 1 | . 1 . . Smash 1 | . 1 . . Melee Attacks 14 | . 4 . 10 Impact 14 | . 4 . 10 Slashing . | . . . . Piercing . | . . . . Sneak Attacks . | . . . . Combat Hostiles . | . . . . Follow-up Attacks . | . . . . Damage Inflicted 2265 | . 236 1118 911 Guns 634 | . 47 193 394 Cannons 1360 | . 108 924 328 Explosions . | . . . . Melee 260 | . 72 . 188 Ramming 11 | . 9 1 1 Kinetic 93 | . 7 86 . Thermal 1446 | . . 724 722 Explosive . | . . . . Electromagnetic 455 | . 148 307 . Impact 260 | . 72 . 188 Slashing . | . . . . Piercing . | . . . . Highest Corruption 1 | . . 1 . Average Corruption 1 | . . 1 . Corruption Purged . | . . . . Corruption Blocked . | . . . . Effects 7 | . . 7 . Message Errors 1 | . . 1 . Matter Fused 1 | . . 1 . Heat Flow Errors 1 | . . 1 . Data Loss (minor) 1 | . . 1 . Data Loss (major) 1 | . . 1 . Misfires 1 | . . 1 . Weapon Failures 1 | . . 1 . Overload Shots . | . . . . Overflow Damage 36 | . 24 . 12 Projectiles 12 | . . . 12 Explosions . | . . . . Melee 24 | . 24 . . Knockbacks 3 | . 1 . 2 Impact 3 | . 1 . 2 Kinetic . | . . . . Secondary . | . . . . Self-Inflicted Damage . | . . . . Shots . | . . . . Rammed 4 | . 3 . 1 Targets Rammed 5 | . 3 1 1 Kicked . | . . . . Crushed 1 | . . 1 . Highest Temperature 532 | . 164 532 500 Average Temperature 150 | . 62 166 142 Received Heat Transfer 1212 | . 156 363 693 Effects 19 | . . 11 8 Shutdowns 4 | . . 1 3 Energy Bleed 3 | . . 1 2 Interference 8 | . . 5 3 Damage (major) 4 | . . 4 . Siege Activations . | . . . . Robots Corrupted 1 | . 1 . . Combat Hostiles 1 | . 1 . . Parts Fried . | . . . . Impact Corruptions 1 | . 1 . . Robots Melted 1 | . . . 1 Combat Hostiles 1 | . . . 1 Parts Melted 7 | . . 1 6 Heat Transferred 3507 | . . 1554 1953 Parts Sabotaged . | . . . . Parts Stolen . | . . . . Parts Stripped . | . . . . Power Chain Reactions . | . . . . Alert | -11 -10 -9 -8 ------- Run | Yrd Mat Mat Mat Peak Influence 342 | . 80 342 296 Initial 109 | . . 33 109 Average 161 | . 8 207 213 Maximum Alert Level 1 | . . 1 1 Low Security (%) 51 | 100 100 36 34 Level 1 48 | . . 63 65 Level 2 . | . . . . Level 3 . | . . . . Level 4 . | . . . . Level 5 . | . . . . High Security . | . . . . Max Security . | . . . . Squads Dispatched 6 | . 1 3 2 Investigation 5 | . . 3 2 Extermination . | . . . . Reinforcement 1 | . 1 . . Assault . | . . . . Garrison . | . . . . Intercept . | . . . . Searches Triggered . | . . . . Construction Impeded . | . . . . Haulers Reinforced . | . . . . Active Scanning Responses . | . . . . Cargo Convoy Interrupts . | . . . . Stealth | -11 -10 -9 -8 --------- Run | Yrd Mat Mat Mat Distress Signals 4 | . . 2 2 Communications Jammed . | . . . . Distress Signals . | . . . . Times Spotted 44 | . 6 19 19 Peak Tracking Total 6 | . 4 4 6 Tactical Retreats . | . . . . Traps | -11 -10 -9 -8 ------- Run | Yrd Mat Mat Mat Traps Triggered . | . . . . Indirectly . | . . . . Trap Hack Attempts . | . . . . Triggered . | . . . . Disarmed . | . . . . Reprogrammed . | . . . . Reused . | . . . . Traps Extracted . | . . . . Installed . | . . . . Triggered . | . . . . Machines | -11 -10 -9 -8 ---------- Run | Yrd Mat Mat Mat Machines Disabled 4 | . . 3 1 Max in Single Turn 2 | . . 2 1 Machines Repaired . | . . . . Machines Dismantled 1 | . 1 . . Machines Sabotaged . | . . . . Overloaded Fab Kills . | . . . . Hacking | -11 -10 -9 -8 --------- Run | Yrd Mat Mat Mat Machines Accessed 7 | . . 5 2 Terminals 3 | . . 3 . Fabricators . | . . . . Repair Stations 2 | . . 1 1 Recycling Units 1 | . . 1 . Scanalyzers 1 | . . . 1 Garrison Access . | . . . . Total Hacks 29 | . . 23 6 Successful 14 | . . 11 3 Failed 15 | . . 12 3 Catastrophic 1 | . . 1 . Database Lockouts . | . . . . Manual . | . . . . Terminals 16 | . . 16 . Fabricators . | . . . . Repair Stations 7 | . . 4 3 Recycling Units 3 | . . 3 . Scanalyzers 3 | . . . 3 Garrison Access . | . . . . Terminal Hacks 8 | . . 8 . Record 2 | . . 2 . Robot Analysis 1 | . . 1 . Prototype ID Bank 1 | . . 1 . Emergency Access Points 1 | . . 1 . Alert Level 1 | . . 1 . Dispatch Records 1 | . . 1 . Hauler Manifests 1 | . . 1 . Fabricator Hacks . | . . . . Repair Station Hacks 3 | . . 1 2 Scan Component 1 | . . . 1 Repair 1 | . . . 1 Refit 1 | . . 1 . Recycling Unit Hacks 2 | . . 2 . Report Inventory 1 | . . 1 . Retrieve Components 1 | . . 1 . Scanalyzer 1 | . . . 1 Insert Component 1 | . . . 1 Garrison Access Hacks . | . . . . Unauthorized Hacks . | . . . . Terminals . | . . . . Fabricators . | . . . . Repair Stations . | . . . . Recycling Units . | . . . . Scanalyzers . | . . . . Garrison Access . | . . . . Data Cores Recovered . | . . . . Used . | . . . . Hacking Detections 7 | . . 5 2 Full Trace Events 7 | . . 5 2 Feedback Events . | . . . . Feedback Blocked . | . . . . Robot Schematics Acquired . | . . . . Robots Built . | . . . . Authchips . | . . . . Time . | . . . . Total Robot Build Rating . | . . . . Part Schematics Acquired . | . . . . Parts Built . | . . . . Authchips . | . . . . Time . | . . . . Total Part Build Rating . | . . . . Parts Repaired 1 | . . . 1 Time 26 | . . . 26 Parts Recycled . | . . . . Recycled Matter . | . . . . Retrieved Matter . | . . . . Retrieved Components 9 | . . 9 . Parts Scanalyzed . | . . . . Part Schematics Acquired . | . . . . Parts Damaged . | . . . . Bothacking | -11 -10 -9 -8 ------------ Run | Yrd Mat Mat Mat Used RIF Installer . | . . . . Robots Hacked . | . . . . Non-combat . | . . . . Combat . | . . . . Robot Hacks Applied . | . . . . Relay Couplers Released . | . . . . Fabnet Peak Effective % . | . . . . Robots Rewired . | . . . . Allies Hacked . | . . . . Hacks Repelled . | . . . . Allies | -11 -10 -9 -8 -------- Run | Yrd Mat Mat Mat Total Allies . | . . . . Largest Group . | . . . . Highest-Rated Group . | . . . . Highest-Rated Ally . | . . . . Total Orders . | . . . . Ally Attacks . | . . . . Total Damage . | . . . . Kills . | . . . . Allies Corrupted . | . . . . Allies Melted . | . . . . Intel | -11 -10 -9 -8 ------- Run | Yrd Mat Mat Mat Robot Analysis Total 1 | . . 1 . Derelict Logs Recovered . | . . . . Drone Launches . | . . . . Drone Recoveries . | . . . . Exploration | -11 -10 -9 -8 ------------- Run | Yrd Mat Mat Mat Turns Passed 1684 | 86 317 883 398 Spaces Moved 665 | 49 149 356 111 Core 18 | 4 . . 14 Treads 646 | 45 149 356 96 Legs . | . . . . Wheels . | . . . . Hover 1 | . . . 1 Flight . | . . . . Fastest Speed 50 | 50 160 160 50 Average Speed 165 | 151 160 169 168 Slowest Speed 700 | 160 160 240 700 Overloaded Moves . | . . . . Propulsion Burnouts . | . . . . Robots Hopped . | . . . . Cave-ins Triggered . | . . . . Exploration Rate (%) 20 | 4 29 30 17 Regions Visited 3 Branch Regions . Pre-discovered Areas . | . . . . Known Exits Taken 1 | . . 1 . Unknown Exits Taken 2 | 1 1 . . Scrap Searched . | . . . . Spaces Dug . | . . . . Terrain Destroyed . | . . . . Melee . | . . . . Projectile . | . . . . AOE . | . . . . Terrain Rammed . | . . . . Walls Destroyed . | . . . . Machines Disabled . | . . . . Actions | -11 -10 -9 -8 --------- Run | Yrd Mat Mat Mat Total 1026 | 61 191 545 229 Wait 154 | . 2 100 52 Move 662 | 48 148 355 111 Hop . | . . . . Pick Up 29 | 8 5 13 3 Fast Attach . | . . . . Attach 33 | 5 6 13 9 Detach 9 | . 3 6 . Swap 11 | . 6 4 1 Drop 6 | . . 5 1 Fire 100 | . 11 48 41 Melee 14 | . 4 . 10 Ram 1 | . . . 1 Kick . | . . . . Crush 4 | . 3 1 . Escape Stasis . | . . . . Rewire . | . . . . Trap . | . . . . Miscellaneous 3 | . 3 . . Route ------- -11/Scrapyard -10/Materials (discovered 2 exits: *Mat / [*Min]) -9/Materials -8/Materials History --------- Turn | Location | Event 11 | -11/Scrapyard | Discovered new exit (range 14) 87 | -11/Scrapyard | Entered Materials 269 | -10/Materials | Discovered new exit (range 18) 338 | -10/Materials | Build established: Mutant 382 | -10/Materials | Discovered new exit (range 13) 404 | -10/Materials | Entered another Materials area 404 | -9/Materials | Evolved 2 slots: Utility x1, Weapon x1 1000 | -9/Materials | Build established: Scavenger-Tank 1269 | -9/Materials | Discovered new exit (range 11) 1286 | -9/Materials | Identified exit to Materials 1287 | -9/Materials | Entered another Materials area 1287 | -8/Materials | Evolved 2 slots: Power x1, Propulsion x1 1330 | -8/Materials | Repaired Lgt. Treads 1634 | -8/Materials | Core integrity fell below 50% 1660 | -8/Materials | Core integrity fell below 20% 1669 | -8/Materials | Lost 13 parts (2p4n1u6w) 1685 | -8/Materials | Destroyed by G-47 Trooper with Particle Gun Last Messages --------------- G-47 Trooper suffers critical hit (Burn). Dropped Hcp. Storage Unit. G-47 Trooper suffers critical hit (Burn). K-01 Serf destroyed. Connecting with Scanalyzer... >>Insert(Lgt. Treads) Scanning Lgt. Treads... Ready to analyze. ALERT: Suspicious activity at Scanalyzer M001. Dispatching Investigation squad. K-01 Serf collects debris. R-06 Scavenger collects Visual Processing Unit. R-06 Scavenger collects Lgt. Armor Plating. G-47 Trooper knocked back. R-06 Scavenger collects Lgt. Treads. G-47 Trooper destroyed. K-01 Serf collects debris. G-50 Soldier knocked back. K-01 Serf collects debris. Lgt. Treads destroyed. Map ----- +----------------------------------------------------+ | ## """ """ """ """ """ ]] #?????????? | | ## ] #?????????? | | ## #?????????? | | #+### " " """ """ """ """ #?????????? | | "R" """ """ """ """ ! #?????????? | | """ """ """ """ """ ###???????? | | #???????? | | #???????? | | ################# ### #???????? | | ????????????????? #?# #???????? | | ????????????????? #??###+######+### #???????? | | ????????????????? ?????????# ??? # ##???????? | | ????????????????????????????# ?? # #????????? | | ????????????????????????????# ?? # #????????? | | ????????????????????????????# # #????????? | | ????????????????#???????????# ?# #????????? | | ????????????????# ??????????? ??# #????????? | | ????????????????# ###########+##### #????????? | | ????????????????# * %#????????? | | ????????????????# =% % #????????? | | ????????????????# != % ?? | | ?????????????#### % % ?? | | ?????????? ! | | ?????????? *g= #########? | | ???????????# #############g########## #????????? | | ????????????????????# =@% #??????? #????????? | | ????????????????????# k* #???????% #????????? | | ????????????????????#! #??????? #????????? | | ????????????????????# "" "" #??????? +????????? | | ????????????????????# ""S"" #??????? #????????? | | ????????????????????# """" #??????? #????????? | | ????????????????????##########??????? #????????? | | ?????????????????????????????????????? ?????????? | | ?????????????????????????????????????????????????? | | ?????????????????????????????????????????????????? | | ?????????????????????????????????????????????????? | | ?????????????????????????????????????????????????? | | ?????????????????????????????????????????????????? | | ?????????????????????????????????????????????????? | | ?????????????????????????????????????????????????? | | ?????????????????????????????????????????????????? | | ?????????????????????????????????????????????????? | | ?????????????????????????????????????????????????? | | ?????????????????????????????????????????????????? | | ?????????????????????????????????????????????????? | | ?????????????????????????????????????????????????? | | ?????????????????????????????????????????????????? | | ?????????????????????????????????????????????????? | | ?????????????????????????????????????????????????? | | ?????????????????????????????????????????????????? | +----------------------------------------------------+ Best States ------------- Heat Dissipation 31 Energy Generation 19 Energy Capacity 310 Matter Stores 300 Matter Capacity 300 Sight Range 18 Terrain Scan Density 10 Core Shielding 20 Evasion (%) 50 Recoil Reduction 3 Item Schematics ----------------- None Robot Schematics ------------------ None Fabricated ------------ Nothing Alien Tech Used ----------------- None Achievements -------------- Shopping List Use The Force Challenges ------------ None Game ------ Seed ThermalTractorFalx Manual? 0 Play Time 00:32:33 Cumulative 2.9 hours Start 2024.05.13 @ 20:26:45 End 2024.05.13 @ 21:28:32 Sessions 1 Manual Loads 0 Difficulty Rogue Special Mode None Game No. 11 Rogue 11 Adventurer 0 Explorer 0 Win Type - Total 0 Types 0/0/0/0/0/0/0/0/0 Lore% 4 Gallery% 7 Achievement% 7 Wizard Run 0 Options --------- Layout 1 ASCII 0 Keyboard 0 Movement Mouse Keybinds 0 Fullscreen 1 Font 20/SmallcapsGlow Map View 50x35 Zoom Use 0% Tactical HUD 0 Map Filters NONE Filters NONE Steam X RUN: a6a807e5-9aee-46c0-8744-24a09a90fcc0